[Event "Almaty Open 2019"]
[Site "Almaty"]
[Date "2019.10.10"]
[Round "5.1"]
[White "Fier, Alexandr"]
[Black "Igambergenov, Alibek"]
[Result "1/2-1/2"]
[ECO "D37"]
[WhiteElo "2541"]
[BlackElo "2402"]
[Annotator "ChessBase"]
[PlyCount "83"]
[EventDate "2019.10.07"]
[EventType "swiss"]
[EventCountry "KAZ"]
[SourceTitle "playchess.com"]
[Source "ChessBase"]
[SourceQuality "1"]
[TimeControl "5400+30"]

1. d4 {[%emt 0:00:00]} Nf6 {[%emt 0:00:00]} 2. Nf3 {[%emt 0:00:00]} e6 {[%emt 0:00:00]} 3. c4 {[%emt 0:00:00]} d5 {[%emt 0:00:02]} 4. Nc3 {[%emt 0:00:00]} a6 {[%emt 0:00:07]} 5. cxd5 {[%emt 0:02:04]} exd5 {[%emt 0:00:04]} 6. Bg5 {[%emt 0:00:05]} Be6 {[%emt 0:00:06]} 7. e3 {[%emt 0:00:05]} Bd6 {[%emt 0:00:07]} 8. Bd3 {[%emt 0:00:32]} Nbd7 {[%emt 0:00:08]} 9. O-O {[%emt 0:00:06]} O-O {[%emt 0:00:06]} 10. h3 {[%emt 0:00:02]} Qe7 {[%emt 0:04:09]} 11. Qc2 {[%emt 0:01:44]} h6 {[%emt 0:00:12]} 12. Bf4 {[%emt 0:00:04]} Rac8 {[%emt 0:00:29]} 13. Bxd6 {[%emt 0:05:22]} Qxd6 {[%emt 0:00:26]} 14. Na4 {[%emt 0:00:04]} c5 {[%emt 0:08:27]} 15. dxc5 {[%emt 0:00:10]} Nxc5 {[%emt 0:00:03]} 16. Nxc5 {[%emt 0:00:05]} Rxc5 {[%emt 0:00:05]} 17. Qa4 {[%emt 0:01:07]} Rfc8 {[%emt 0:02:44]} 18. Qd4 {[%emt 0:00:30]} Bd7 {[%emt 0:09:25]} 19. e4 {[%emt 0:07:30]} Qf4 {[%emt 0:24:40]} 20. e5 {[%emt 0:00:14]} Nh5 {[%emt 0:00:08]} 21. Rad1 {[%emt 0:05:05]} Qxd4 {[%emt 0:01:40]} 22. Nxd4 {[%emt 0:00:04]} Nf4 {[%emt 0:00:16]} 23. Rfe1 {[%emt 0:00:33]} Kf8 {[%emt 0:08:00]} 24. Bb1 {[%emt 0:03:12]} Ba4 {[%emt 0:03:20]} 25. b3 {[%emt 0:01:21]} Bd7 {[%emt 0:00:04]} 26. h4 {[%emt 0:02:30]} g6 {[%emt 0:02:08]} 27. f3 {[%emt 0:01:40]} Ne6 {[%emt 0:01:27]} 28. Kf2 {[%emt 0:00:06]} Ke7 {[%emt 0:01:28]} 29. g4 {[%emt 0:07:19]} R8c7 {[%emt 0:10:25]} 30. Ne2 {[%emt 0:05:01]} Bb5 {[%emt 0:02:33]} 31. Nd4 {[%emt 0:00:34]} Bd7 {[%emt 0:00:06]} 32. Nxe6 {[%emt 0:02:33]} Bxe6 {[%emt 0:00:06]} 33. Ke3 {[%emt 0:00:04]} Rc3+ {[%emt 0:02:12]} 34. Bd3 {[%emt 0:01:12]} Bd7 {[%emt 0:02:56]} 35. Kd4 {[%emt 0:01:49]} Bb5 {[%emt 0:00:25]} 36. f4 {[%emt 0:01:01]} Bxd3 {[%emt 0:03:16]} 37. Rxd3 {[%emt 0:00:04]} Rc2 {[%emt 0:00:31]} 38. Kxd5 {[%emt 0:06:06]} Rg2 {[%emt 0:00:59]} 39. g5 {[%emt 0:03:15]} hxg5 {[%emt 0:00:06]} 40. hxg5 {[%emt 0:00:12]} Rxa2 {[%emt 0:01:26]} 41. Ke4 {[%emt 0:00:06]} a5 {[%emt 0:03:38]} 42. Red1 {[%emt 0:07:53]} 1/2-1/2

[Event "Almaty Open 2019"]
[Site "Almaty"]
[Date "2019.10.10"]
[Round "5.2"]
[White "Hamitevici, Vladimir"]
[Black "Smirnov, Pavel"]
[Result "1-0"]
[ECO "A05"]
[WhiteElo "2472"]
[BlackElo "2556"]
[Annotator "ChessBase"]
[PlyCount "69"]
[EventDate "2019.10.07"]
[EventType "swiss"]
[EventCountry "KAZ"]
[SourceTitle "playchess.com"]
[Source "ChessBase"]
[SourceQuality "1"]
[TimeControl "5400+30"]

1. Nf3 {[%emt 0:06:17]} Nf6 {[%emt 0:01:06]} 2. g3 {[%emt 0:00:45]} d5 {[%emt 0:00:03]} 3. Bg2 {[%emt 0:00:22]} e6 {[%emt 0:00:07]} 4. O-O {[%emt 0:00:33]} Be7 {[%emt 0:00:04]} 5. c4 {[%emt 0:00:33]} O-O {[%emt 0:00:09]} 6. b3 {[%emt 0:00:20]} c5 {[%emt 0:00:06]} 7. cxd5 {[%emt 0:00:53]} Nxd5 {[%emt 0:00:05]} 8. Bb2 {[%emt 0:00:29]} b6 {[%emt 0:00:09]} 9. d4 {[%emt 0:00:44]} Bb7 {[%emt 0:00:05]} 10. Na3 {[%emt 0:01:09]} Nd7 {[%emt 0:01:07]} 11. Nc4 {[%emt 0:01:27]} Rc8 {[%emt 0:10:39]} 12. Rc1 {[%emt 0:00:40]} b5 {[%emt 0:03:16]} 13. Nce5 {[%emt 0:00:08]} N7f6 {[%emt 0:01:33]} 14. a3 {[%emt 0:03:01]} a5 {[%emt 0:13:17]} 15. Qd3 {[%emt 0:05:05]} Qb6 {[%emt 0:00:35]} 16. Ng5 {[%emt 0:01:37]} Rcd8 {[%emt 0:06:17]} 17. e4 {[%emt 0:01:50]} Nc7 {[%emt 0:00:45]} 18. Qc2 {[%emt 0:06:27]} Na6 {[%emt 0:06:11]} 19. Nexf7 {[%emt 0:00:10]} Rxf7 {[%emt 0:01:52]} 20. e5 {[%emt 0:00:09]} Bxg2 {[%emt 0:03:10]} 21. Kxg2 {[%emt 0:02:20]} Qb7+ {[%emt 0:06:57]} 22. f3 {[%emt 0:00:42]} cxd4 {[%emt 0:04:49]} 23. exf6 {[%emt 0:04:51]} gxf6 {[%emt 0:00:06]} 24. Nxf7 {[%emt 0:00:11]} Kxf7 {[%emt 0:00:04]} 25. Qxh7+ {[%emt 0:00:37]} Kf8 {[%emt 0:00:02]} 26. Qh8+ {[%emt 0:04:30]} Kf7 {[%emt 0:00:05]} 27. Qh5+ {[%emt 0:00:08]} Kf8 {[%emt 0:00:11]} 28. Rfe1 {[%emt 0:00:06]} e5 {[%emt 0:05:44]} 29. Re4 {[%emt 0:01:43]} Qd5 {[%emt 0:00:23]} 30. Bxd4 {[%emt 0:01:54]} Bxa3 {[%emt 0:02:08]} 31. Rce1 {[%emt 0:01:20]} Bd6 {[%emt 0:09:48]} 32. Rg4 {[%emt 0:03:00]} Bc7 {[%emt 0:03:03]} 33. Qh7 {[%emt 0:07:35]} Qf7 {[%emt 0:06:01]} 34. Qh6+ {[%emt 0:00:08]} Ke8 {[%emt 0:00:06]} 35. Rg7 {[%emt 0:00:15]} 1-0

[Event "Almaty Open 2019"]
[Site "Almaty"]
[Date "2019.10.10"]
[Round "5.3"]
[White "Urazayev, Arystanbek"]
[Black "Utegaliyev, Azamat"]
[Result "1/2-1/2"]
[ECO "C79"]
[WhiteElo "2420"]
[BlackElo "2503"]
[Annotator "ChessBase"]
[PlyCount "51"]
[EventDate "2019.10.07"]
[EventType "swiss"]
[EventCountry "KAZ"]
[SourceTitle "playchess.com"]
[Source "ChessBase"]
[SourceQuality "1"]
[TimeControl "5400+30"]

1. e4 {[%emt 0:03:09]} e5 {[%emt 0:05:12]} 2. Nf3 {[%emt 0:00:41]} Nc6 {[%emt 0:00:05]} 3. Bb5 {[%emt 0:00:21]} a6 {[%emt 0:00:34]} 4. Ba4 {[%emt 0:00:08]} d6 {[%emt 0:00:59]} 5. O-O {[%emt 0:04:24]} Nf6 {[%emt 0:01:11]} 6. Re1 {[%emt 0:07:09]} Bg4 {[%emt 0:08:01]} 7. c3 {[%emt 0:03:09]} Be7 {[%emt 0:00:26]} 8. d3 {[%emt 0:01:14]} O-O {[%emt 0:00:36]} 9. Nbd2 {[%emt 0:00:50]} Nd7 {[%emt 0:02:49]} 10. h3 {[%emt 0:01:27]} Bh5 {[%emt 0:00:11]} 11. Nf1 {[%emt 0:00:15]} Nc5 {[%emt 0:01:04]} 12. Bc2 {[%emt 0:00:16]} Ne6 {[%emt 0:01:02]} 13. Ng3 {[%emt 0:00:12]} Bxf3 {[%emt 0:00:36]} 14. Qxf3 {[%emt 0:00:08]} Bg5 {[%emt 0:00:04]} 15. Nf5 {[%emt 0:00:13]} Bxc1 {[%emt 0:06:13]} 16. Raxc1 {[%emt 0:00:08]} Qf6 {[%emt 0:04:10]} 17. Qe2 {[%emt 0:00:26]} Ne7 {[%emt 0:02:08]} 18. Ne3 {[%emt 0:05:30]} g6 {[%emt 0:05:14]} 19. Rcd1 {[%emt 0:12:30]} h5 {[%emt 0:02:33]} 20. Qd2 {[%emt 0:04:37]} Rad8 {[%emt 0:13:53]} 21. d4 {[%emt 0:09:00]} Qg5 {[%emt 0:07:08]} 22. Bb3 {[%emt 0:08:48]} Kh7 {[%emt 0:02:53]} 23. Kh1 {[%emt 0:04:01]} Qh4 {[%emt 0:17:51]} 24. Bxe6 {[%emt 0:19:13]} fxe6 {[%emt 0:00:06]} 25. f3 {[%emt 0:00:47]} Qf6 {[%emt 0:02:58]} 26. Qe2 {[%emt 0:05:13]} 1/2-1/2

[Event "Almaty Open 2019"]
[Site "Almaty"]
[Date "2019.10.10"]
[Round "5.4"]
[White "Simantsev, Mikhail"]
[Black "Moisseyenko, Ilya"]
[Result "1-0"]
[ECO "D45"]
[WhiteElo "2365"]
[BlackElo "2264"]
[Annotator "ChessBase"]
[PlyCount "101"]
[EventDate "2019.10.07"]
[EventType "swiss"]
[EventCountry "KAZ"]
[SourceTitle "playchess.com"]
[Source "ChessBase"]
[SourceQuality "1"]
[TimeControl "5400+30"]

1. d4 {[%emt 0:10:27]} d5 {[%emt 0:00:00]} 2. c4 {[%emt 0:00:52]} c6 {[%emt 0:00:00]} 3. Nc3 {[%emt 0:00:03]} Nf6 {[%emt 0:00:00]} 4. e3 {[%emt 0:00:01]} e6 {[%emt 0:00:14]} 5. Nf3 {[%emt 0:00:03]} Nbd7 {[%emt 0:00:07]} 6. Qc2 {[%emt 0:00:01]} Bd6 {[%emt 0:00:13]} 7. Bd3 {[%emt 0:00:20]} O-O {[%emt 0:00:14]} 8. O-O {[%emt 0:00:02]} dxc4 {[%emt 0:00:12]} 9. Bxc4 {[%emt 0:00:01]} b5 {[%emt 0:00:08]} 10. Bd3 {[%emt 0:00:05]} Bb7 {[%emt 0:00:20]} 11. e4 {[%emt 0:06:27]} e5 {[%emt 0:00:14]} 12. Rd1 {[%emt 0:00:05]} Qc7 {[%emt 0:00:23]} 13. h3 {[%emt 0:00:15]} Rfe8 {[%emt 0:02:09]} 14. Bg5 {[%emt 0:12:07]} Rad8 {[%emt 0:04:12]} 15. Rac1 {[%emt 0:06:39]} Qb8 {[%emt 0:06:45]} 16. Ne2 {[%emt 0:05:30]} a6 {[%emt 0:27:48]} 17. dxe5 {[%emt 0:05:26]} Bxe5 {[%emt 0:21:04]} 18. Nxe5 {[%emt 0:12:53]} Nxe5 {[%emt 0:00:05]} 19. Bxf6 {[%emt 0:00:24]} gxf6 {[%emt 0:00:04]} 20. Ng3 {[%emt 0:00:11]} Kh8 {[%emt 0:12:30]} 21. Be2 {[%emt 0:06:12]} Ng6 {[%emt 0:01:51]} 22. Rxd8 {[%emt 0:03:29]} Rxd8 {[%emt 0:03:13]} 23. Rd1 {[%emt 0:00:01]} Nf4 {[%emt 0:02:42]} 24. Bf3 {[%emt 0:06:29]} Qc7 {[%emt 0:02:11]} 25. Qc5 {[%emt 0:12:35]} Rxd1+ {[%emt 0:03:20]} 26. Bxd1 {[%emt 0:02:15]} Ne6 {[%emt 0:00:02]} 27. Qh5 {[%emt 0:01:51]} c5 {[%emt 0:01:30]} 28. Bg4 {[%emt 0:01:10]} Kg7 {[%emt 0:09:13]} 29. Bxe6 {[%emt 0:05:33]} fxe6 {[%emt 0:00:14]} 30. Qg4+ {[%emt 0:00:01]} Kf7 {[%emt 0:00:55]} 31. Nh5 {[%emt 0:00:09]} Ke7 {[%emt 0:00:19]} 32. Qg7+ {[%emt 0:00:44]} Kd6 {[%emt 0:00:02]} 33. Qxf6 {[%emt 0:00:02]} Qe7 {[%emt 0:01:11]} 34. e5+ {[%emt 0:01:37]} Kd7 {[%emt 0:00:02]} 35. Qh6 {[%emt 0:00:16]} c4 {[%emt 0:00:45]} 36. Nf6+ {[%emt 0:00:34]} Kc7 {[%emt 0:00:50]} 37. a3 {[%emt 0:00:36]} a5 {[%emt 0:01:03]} 38. Qh4 {[%emt 0:01:55]} Kb8 {[%emt 0:01:11]} 39. a4 {[%emt 0:00:08]} c3 {[%emt 0:01:27]} 40. bxc3 {[%emt 0:00:16]} b4 {[%emt 0:00:02]} 41. Qd4 {[%emt 0:02:00]} bxc3 {[%emt 0:01:03]} 42. Qxc3 {[%emt 0:00:04]} Qb4 {[%emt 0:00:17]} 43. Nd7+ {[%emt 0:00:40]} Ka7 {[%emt 0:00:34]} 44. Qc7 {[%emt 0:00:35]} Qd2 {[%emt 0:00:45]} 45. Qb8+ {[%emt 0:00:47]} Ka6 {[%emt 0:00:05]} 46. Nc5+ {[%emt 0:00:03]} Kb6 {[%emt 0:00:08]} 47. Qxb7+ {[%emt 0:00:07]} Kxc5 {[%emt 0:00:07]} 48. Qb5+ {[%emt 0:00:09]} Kd4 {[%emt 0:00:24]} 49. Qd7+ {[%emt 0:00:01]} Kc3 {[%emt 0:00:01]} 50. Qxd2+ {[%emt 0:00:09]} Kxd2 {[%emt 0:00:04]} 51. f4 {[%emt 0:00:04]} 1-0

[Event "Almaty Open 2019"]
[Site "Almaty"]
[Date "2019.10.10"]
[Round "5.5"]
[White "Kenzhalin, Nursultan"]
[Black "Makhnev, Denis"]
[Result "0-1"]
[ECO "E15"]
[WhiteElo "2185"]
[BlackElo "2478"]
[Annotator "ChessBase"]
[PlyCount "94"]
[EventDate "2019.10.07"]
[EventType "swiss"]
[EventCountry "KAZ"]
[SourceTitle "playchess.com"]
[Source "ChessBase"]
[SourceQuality "1"]
[TimeControl "5400+30"]

1. d4 {[%emt 0:00:00]} Nf6 {[%emt 0:07:03]} 2. c4 {[%emt 0:00:07]} e6 {[%emt 0:00:05]} 3. Nf3 {[%emt 0:00:07]} b6 {[%emt 0:00:05]} 4. g3 {[%emt 0:01:01]} Ba6 {[%emt 0:01:57]} 5. Qc2 {[%emt 0:01:20]} Bb7 {[%emt 0:05:29]} 6. Bg2 {[%emt 0:00:19]} Bb4+ {[%emt 0:00:22]} 7. Bd2 {[%emt 0:01:43]} a5 {[%emt 0:00:06]} 8. O-O {[%emt 0:01:01]} O-O {[%emt 0:00:09]} 9. Nc3 {[%emt 0:01:01]} Bxc3 {[%emt 0:03:57]} 10. Bxc3 {[%emt 0:00:26]} Be4 {[%emt 0:00:26]} 11. Qc1 {[%emt 0:01:18]} d5 {[%emt 0:01:22]} 12. b3 {[%emt 0:01:47]} Nbd7 {[%emt 0:09:13]} 13. Rd1 {[%emt 0:00:48]} Qc8 {[%emt 0:06:38]} 14. Qf4 {[%emt 0:03:58]} a4 {[%emt 0:01:27]} 15. Nd2 {[%emt 0:02:54]} Bxg2 {[%emt 0:00:37]} 16. Kxg2 {[%emt 0:00:02]} Qb7 {[%emt 0:03:03]} 17. f3 {[%emt 0:03:10]} b5 {[%emt 0:00:08]} 18. Rab1 {[%emt 0:08:38]} axb3 {[%emt 0:12:49]} 19. axb3 {[%emt 0:00:10]} Rfe8 {[%emt 0:00:48]} 20. c5 {[%emt 0:03:23]} b4 {[%emt 0:03:49]} 21. Bb2 {[%emt 0:00:07]} Nb8 {[%emt 0:00:07]} 22. e4 {[%emt 0:05:29]} Nfd7 {[%emt 0:07:09]} 23. e5 {[%emt 0:06:09]} f6 {[%emt 0:02:44]} 24. exf6 {[%emt 0:00:36]} Nxf6 {[%emt 0:00:27]} 25. Re1 {[%emt 0:01:13]} Nc6 {[%emt 0:00:56]} 26. Ra1 {[%emt 0:02:07]} Rxa1 {[%emt 0:03:09]} 27. Rxa1 {[%emt 0:00:56]} Qb5 {[%emt 0:01:18]} 28. Qe3 {[%emt 0:02:39]} Nd7 {[%emt 0:01:00]} 29. f4 {[%emt 0:05:59]} Nf6 {[%emt 0:00:43]} 30. h3 {[%emt 0:00:40]} Kf8 {[%emt 0:10:55]} 31. Re1 {[%emt 0:01:57]} Ne7 {[%emt 0:01:27]} 32. g4 {[%emt 0:01:32]} Ng6 {[%emt 0:00:41]} 33. Kg3 {[%emt 0:00:37]} h5 {[%emt 0:02:58]} 34. Qf3 {[%emt 0:01:32]} Qd7 {[%emt 0:02:10]} 35. g5 {[%emt 0:03:55]} h4+ {[%emt 0:00:04]} 36. Kh2 {[%emt 0:00:10]} Ng8 {[%emt 0:00:03]} 37. Qh5 {[%emt 0:06:31]} Qf7 {[%emt 0:00:30]} 38. Qg4 {[%emt 0:05:48]} N8e7 {[%emt 0:00:48]} 39. Bc1 {[%emt 0:02:20]} Nf5 {[%emt 0:02:38]} 40. Nf3 {[%emt 0:00:16]} Ra8 {[%emt 0:00:03]} 41. Qg2 {[%emt 0:00:42]} Ng3 {[%emt 0:04:07]} 42. Nxh4 {[%emt 0:06:02]} Nxh4 {[%emt 0:00:06]} 43. Qxg3 {[%emt 0:00:03]} Ra2+ {[%emt 0:00:03]} 44. Kh1 {[%emt 0:00:19]} Qh5 {[%emt 0:00:17]} 45. Rf1 {[%emt 0:02:50]} Qe2 {[%emt 0:00:53]} 46. Kg1 {[%emt 0:00:10]} Qe4 {[%emt 0:00:04]} 47. Rf2 {[%emt 0:01:02]} Qe1+ {[%emt 0:00:04]} 0-1

[Event "Almaty Open 2019"]
[Site "Almaty"]
[Date "2019.10.10"]
[Round "5.6"]
[White "Amanov, Zhanibek"]
[Black "Kostenko, Petr"]
[Result "1/2-1/2"]
[ECO "C46"]
[WhiteElo "2339"]
[BlackElo "2462"]
[Annotator "ChessBase"]
[PlyCount "57"]
[EventDate "2019.10.07"]
[EventType "swiss"]
[EventCountry "KAZ"]
[SourceTitle "playchess.com"]
[Source "ChessBase"]
[SourceQuality "1"]
[TimeControl "5400+30"]

1. e4 {[%emt 0:02:44]} e5 {[%emt 0:13:33]} 2. Nf3 {[%emt 0:00:16]} Nc6 {[%emt 0:00:10]} 3. Nc3 {[%emt 0:00:05]} d6 {[%emt 0:00:31]} 4. d4 {[%emt 0:00:42]} Bg4 {[%emt 0:00:43]} 5. Bb5 {[%emt 0:01:32]} exd4 {[%emt 0:00:32]} 6. Qxd4 {[%emt 0:00:28]} Qd7 {[%emt 0:00:54]} 7. Bxc6 {[%emt 0:02:38]} bxc6 {[%emt 0:00:24]} 8. Bg5 {[%emt 0:01:49]} h6 {[%emt 0:00:33]} 9. Bh4 {[%emt 0:01:57]} c5 {[%emt 0:05:43]} 10. Qd3 {[%emt 0:04:46]} Be7 {[%emt 0:01:36]} 11. Bg3 {[%emt 0:07:34]} Nf6 {[%emt 0:00:55]} 12. e5 {[%emt 0:07:23]} dxe5 {[%emt 0:05:04]} 13. Qxd7+ {[%emt 0:07:17]} Nxd7 {[%emt 0:00:40]} 14. Nxe5 {[%emt 0:00:11]} Nxe5 {[%emt 0:02:06]} 15. Bxe5 {[%emt 0:00:38]} O-O-O {[%emt 0:03:29]} 16. Bxg7 {[%emt 0:03:46]} Rh7 {[%emt 0:06:29]} 17. Be5 {[%emt 0:00:30]} Bf5 {[%emt 0:00:15]} 18. Rd1 {[%emt 0:13:01]} Bxc2 {[%emt 0:00:37]} 19. Rxd8+ {[%emt 0:00:12]} Bxd8 {[%emt 0:03:32]} 20. Kd2 {[%emt 0:05:31]} Bf5 {[%emt 0:00:19]} 21. Re1 {[%emt 0:00:54]} f6 {[%emt 0:01:20]} 22. Bf4 {[%emt 0:00:07]} h5 {[%emt 0:01:01]} 23. h4 {[%emt 0:01:14]} Rd7+ {[%emt 0:00:24]} 24. Kc1 {[%emt 0:00:06]} Bg6 {[%emt 0:11:37]} 25. Be3 {[%emt 0:11:48]} Be7 {[%emt 0:00:20]} 26. Rd1 {[%emt 0:01:58]} Bf7 {[%emt 0:02:13]} 27. Rxd7 {[%emt 0:00:27]} Kxd7 {[%emt 0:00:03]} 28. a3 {[%emt 0:00:26]} a6 {[%emt 0:00:05]} 29. Kd2 {[%emt 0:05:02]} 1/2-1/2

[Event "Almaty Open 2019"]
[Site "Almaty"]
[Date "2019.10.10"]
[Round "5.7"]
[White "Stupak, Kirill"]
[Black "Barsov, Alexei"]
[Result "0-1"]
[ECO "A13"]
[WhiteElo "2551"]
[BlackElo "2365"]
[Annotator "ChessBase"]
[PlyCount "64"]
[EventDate "2019.10.07"]
[EventType "swiss"]
[EventCountry "KAZ"]
[SourceTitle "playchess.com"]
[Source "ChessBase"]
[SourceQuality "1"]
[TimeControl "5400+30"]

1. c4 {[%emt 0:06:07]} e6 {[%emt 0:00:00]} 2. g3 {[%emt 0:00:17]} d5 {[%emt 0:00:00]} 3. Bg2 {[%emt 0:00:13]} Nf6 {[%emt 0:01:01]} 4. Nf3 {[%emt 0:00:17]} dxc4 {[%emt 0:01:12]} 5. Qa4+ {[%emt 0:00:46]} Nbd7 {[%emt 0:00:12]} 6. Qxc4 {[%emt 0:00:38]} c5 {[%emt 0:00:05]} 7. Qc2 {[%emt 0:01:47]} b6 {[%emt 0:04:13]} 8. Nc3 {[%emt 0:31:15]} Bb7 {[%emt 0:01:45]} 9. O-O {[%emt 0:00:07]} Rc8 {[%emt 0:21:48]} 10. Rd1 {[%emt 0:05:46]} Be7 {[%emt 0:01:29]} 11. e4 {[%emt 0:04:26]} e5 {[%emt 0:20:18]} 12. Nh4 {[%emt 0:01:17]} g6 {[%emt 0:16:18]} 13. d3 {[%emt 0:01:08]} O-O {[%emt 0:00:55]} 14. Bh3 {[%emt 0:03:27]} Ra8 {[%emt 0:00:19]} 15. f4 {[%emt 0:02:43]} exf4 {[%emt 0:02:24]} 16. gxf4 {[%emt 0:01:14]} Nb8 {[%emt 0:00:05]} 17. Nf3 {[%emt 0:04:37]} Nc6 {[%emt 0:00:05]} 18. Be3 {[%emt 0:01:46]} Bc8 {[%emt 0:08:57]} 19. Qg2 {[%emt 0:02:39]} Bxh3 {[%emt 0:06:17]} 20. Qxh3 {[%emt 0:00:03]} Qd7 {[%emt 0:03:34]} 21. f5 {[%emt 0:11:24]} gxf5 {[%emt 0:00:06]} 22. Bh6 {[%emt 0:03:04]} Ng4 {[%emt 0:00:06]} 23. Bxf8 {[%emt 0:01:34]} Rxf8 {[%emt 0:00:05]} 24. Nd5 {[%emt 0:03:12]} Kh8 {[%emt 0:00:34]} 25. Rd2 {[%emt 0:02:09]} c4 {[%emt 0:07:01]} 26. Nxe7 {[%emt 0:07:07]} Qxe7 {[%emt 0:00:17]} 27. Kh1 {[%emt 0:00:04]} cxd3 {[%emt 0:00:47]} 28. Re1 {[%emt 0:04:15]} Qb4 {[%emt 0:02:10]} 29. Qh4 {[%emt 0:00:26]} Nd4 {[%emt 0:00:20]} 30. Ng5 {[%emt 0:00:40]} h6 {[%emt 0:00:35]} 31. Rxd3 {[%emt 0:00:08]} Qxb2 {[%emt 0:01:40]} 32. Nh3 {[%emt 0:00:01]} Qxh2# 0-1

[Event "Almaty Open 2019"]
[Site "Almaty"]
[Date "2019.10.10"]
[Round "5.8"]
[White "Bekturov, Tamerlan"]
[Black "Harutyunian, Tigran K."]
[Result "0-1"]
[ECO "A40"]
[WhiteElo "2226"]
[BlackElo "2535"]
[Annotator "ChessBase"]
[PlyCount "106"]
[EventDate "2019.10.07"]
[EventType "swiss"]
[EventCountry "KAZ"]
[SourceTitle "playchess.com"]
[Source "ChessBase"]
[SourceQuality "1"]
[TimeControl "5400+30"]

1. d4 {[%emt 0:06:36]} Nf6 {[%emt 0:00:00]} 2. c4 {[%emt 0:00:07]} e6 {[%emt 0:00:00]} 3. g3 {[%emt 0:00:06]} d5 {[%emt 0:00:12]} 4. Nf3 {[%emt 0:00:40]} Bb4+ {[%emt 0:00:46]} 5. Bd2 {[%emt 0:00:12]} Be7 {[%emt 0:00:08]} 6. Bg2 {[%emt 0:00:07]} O-O {[%emt 0:00:07]} 7. O-O {[%emt 0:00:43]} Nbd7 {[%emt 0:00:11]} 8. Qc2 {[%emt 0:01:20]} c6 {[%emt 0:00:10]} 9. Rd1 {[%emt 0:01:06]} Ne4 {[%emt 0:03:59]} 10. Be3 {[%emt 0:14:29]} f5 {[%emt 0:01:28]} 11. Nfd2 {[%emt 0:03:36]} Bd6 {[%emt 0:11:12]} 12. Nxe4 {[%emt 0:09:59]} fxe4 {[%emt 0:00:56]} 13. f3 {[%emt 0:01:10]} Nf6 {[%emt 0:12:37]} 14. fxe4 {[%emt 0:08:05]} Ng4 {[%emt 0:00:52]} 15. Qd2 {[%emt 0:00:57]} e5 {[%emt 0:01:48]} 16. dxe5 {[%emt 0:11:52]} Nxe3 {[%emt 0:03:48]} 17. Qxe3 {[%emt 0:00:24]} Bxe5 {[%emt 0:01:05]} 18. Na3 {[%emt 0:05:13]} Bxb2 {[%emt 0:05:24]} 19. Rab1 {[%emt 0:00:07]} d4 {[%emt 0:01:05]} 20. Qb3 {[%emt 0:02:42]} Bc3 {[%emt 0:00:38]} 21. c5+ {[%emt 0:03:02]} Kh8 {[%emt 0:00:07]} 22. Nc2 {[%emt 0:00:20]} Qe7 {[%emt 0:11:45]} 23. Qa3 {[%emt 0:01:47]} Qe5 {[%emt 0:24:19]} 24. e3 {[%emt 0:02:09]} dxe3 {[%emt 0:01:20]} 25. Rd3 {[%emt 0:00:13]} Bd2 {[%emt 0:00:58]} 26. Nxe3 {[%emt 0:00:19]} Bxe3+ {[%emt 0:00:42]} 27. Rxe3 {[%emt 0:00:07]} Be6 {[%emt 0:00:52]} 28. Qc3 {[%emt 0:06:13]} Qxc3 {[%emt 0:00:09]} 29. Rxc3 {[%emt 0:00:05]} Rad8 {[%emt 0:00:03]} 30. Rf3 {[%emt 0:06:13]} Rxf3 {[%emt 0:01:54]} 31. Bxf3 {[%emt 0:00:08]} Rd7 {[%emt 0:00:51]} 32. Rb2 {[%emt 0:02:58]} Kg8 {[%emt 0:00:27]} 33. Kf2 {[%emt 0:00:07]} Kf7 {[%emt 0:00:10]} 34. Ke3 {[%emt 0:01:05]} Kf6 {[%emt 0:00:06]} 35. Be2 {[%emt 0:03:59]} Ke5 {[%emt 0:00:06]} 36. Bd3 {[%emt 0:00:19]} Rf7 {[%emt 0:01:01]} 37. Be2 {[%emt 0:01:30]} Rd7 {[%emt 0:00:22]} 38. Bd3 {[%emt 0:00:37]} g5 {[%emt 0:00:21]} 39. Be2 {[%emt 0:01:18]} h6 {[%emt 0:00:11]} 40. a3 {[%emt 0:01:16]} Rd4 {[%emt 0:01:46]} 41. Rxb7 {[%emt 0:00:42]} Rxe4+ {[%emt 0:00:23]} 42. Kd2 {[%emt 0:00:47]} Ra4 {[%emt 0:00:17]} 43. Rh7 {[%emt 0:00:53]} Rxa3 {[%emt 0:00:48]} 44. Rxh6 {[%emt 0:00:08]} Bd5 {[%emt 0:01:37]} 45. Rh7 {[%emt 0:03:19]} Kd4 {[%emt 0:00:23]} 46. h4 {[%emt 0:01:58]} Ra2+ {[%emt 0:00:54]} 47. Kd1 {[%emt 0:00:09]} Ke3 {[%emt 0:00:21]} 48. Re7+ {[%emt 0:02:10]} Be4 {[%emt 0:00:02]} 49. Rxe4+ {[%emt 0:00:31]} Kxe4 {[%emt 0:00:05]} 50. hxg5 {[%emt 0:00:10]} Ke3 {[%emt 0:02:31]} 51. Bc4 {[%emt 0:00:49]} Rg2 {[%emt 0:00:31]} 52. g6 {[%emt 0:00:11]} Rxg3 {[%emt 0:00:17]} 53. Bf7 {[%emt 0:00:07]} Kd4 {[%emt 0:00:30]} 0-1

[Event "Almaty Open 2019"]
[Site "Almaty"]
[Date "2019.10.10"]
[Round "5.9"]
[White "Khusenkhojaev, Muhammad"]
[Black "Dauletova, Gulmira"]
[Result "1-0"]
[ECO "E04"]
[WhiteElo "2434"]
[BlackElo "2259"]
[Annotator "NA"]
[PlyCount "83"]
[EventDate "2019.10.07"]
[EventType "swiss"]
[EventCountry "KAZ"]
[SourceTitle "playchess.com"]
[Source "ChessBase"]
[SourceQuality "1"]
[TimeControl "5400+30"]

1. d4 {[%emt 0:01:38]} Nf6 {[%emt 0:00:00]} 2. c4 {[%emt 0:00:07]} e6 {[%emt 0:00:00]} 3. g3 {[%emt 0:00:06]} d5 {[%emt 0:00:07]} 4. Nf3 {[%emt 0:00:19]} dxc4 {[%emt 0:00:18]} 5. Bg2 {[%emt 0:00:06]} a6 {[%emt 0:00:41]} 6. O-O {[%emt 0:00:13]} Nc6 {[%emt 0:00:30]} 7. e3 {[%emt 0:00:11]} Bd7 {[%emt 0:00:28]} 8. Qe2 {[%emt 0:00:12]} Bd6 {[%emt 0:00:30]} 9. Qxc4 {[%emt 0:00:11]} O-O {[%emt 0:00:18]} 10. Rd1 {[%emt 0:00:08]} Qe7 {[%emt 0:00:22]} 11. Nc3 {[%emt 0:00:09]} h6 {[%emt 0:00:16]} 12. Nd2 {[%emt 0:00:12]} e5 {[%emt 0:00:25]} 13. Nde4 {[%emt 0:00:27]} exd4 {[%emt 0:00:22]} 14. exd4 {[%emt 0:00:13]} Nxe4 {[%emt 0:00:16]} 15. Nxe4 {[%emt 0:00:12]} Be6 {[%emt 0:00:27]} 16. d5 {[%emt 0:07:08]} Ne5 {[%emt 0:00:32]} 17. Qb3 {[%emt 0:00:07]} Bg4 {[%emt 0:00:07]} 18. f3 {[%emt 0:00:28]} Bh5 {[%emt 0:01:03]} 19. Nxd6 {[%emt 0:10:28]} cxd6 {[%emt 0:02:00]} 20. Bd2 {[%emt 0:02:34]} Rfe8 {[%emt 0:05:48]} 21. Re1 {[%emt 0:03:16]} Qd7 {[%emt 0:00:49]} 22. f4 {[%emt 0:00:55]} Ng6 {[%emt 0:08:59]} 23. h3 {[%emt 0:00:27]} f5 {[%emt 0:00:53]} 24. Qb6 {[%emt 0:04:19]} Nh8 {[%emt 0:12:33]} 25. Re6 {[%emt 0:00:48]} Rac8 {[%emt 0:14:10]} 26. Bc3 {[%emt 0:08:03]} Rxe6 {[%emt 0:15:13]} 27. dxe6 {[%emt 0:00:16]} Qxe6 {[%emt 0:00:12]} 28. Qxb7 {[%emt 0:04:23]} Bf7 {[%emt 0:00:36]} 29. Qxa6 {[%emt 0:01:19]} h5 {[%emt 0:15:39]} 30. Re1 {[%emt 0:05:21]} Qd7 {[%emt 0:01:01]} 31. Re7 {[%emt 0:03:49]} Qd8 {[%emt 0:02:41]} 32. Qa7 {[%emt 0:02:04]} Rc5 {[%emt 0:01:47]} 33. h4 {[%emt 0:01:05]} Qf8 {[%emt 0:01:16]} 34. a4 {[%emt 0:00:55]} Qc8 {[%emt 0:08:13]} 35. a5 {[%emt 0:04:04]} Rxc3 {[%emt 0:01:41]} 36. bxc3 {[%emt 0:00:10]} Qxc3 {[%emt 0:00:02]} 37. Kh2 {[%emt 0:03:13]} Qd2 {[%emt 0:02:14]} 38. a6 {[%emt 0:00:26]} g5 {[%emt 0:01:31]} 39. Qe3 {[%emt 0:01:46]} Qa2 {[%emt 0:00:03]} 40. a7 {[%emt 0:00:54]} gxf4 {[%emt 0:03:52]} 41. Qxf4 {[%emt 0:00:35]} Ng6 {[%emt 0:00:41]} 42. a8=Q+ {[%emt 0:00:52]} 1-0